fUSD/lending_fUSD_20240109
["ID","MTS","AMOUNT","RATE_DAILY","PERIOD"]
[310920265,1704818850947,12630.95,0.00022089,2]
[310920266,1704818852724,700.0,0.000228,8]
[310920267,1704818854845,1000.0,0.000229,8]
[310920268,1704818925666,169.03,0.00022244,2]
[310920269,1704818940189,582.07,0.00022017,2]
[310920270,1704818941234,214.96,0.00022017,2]
[310920282,1704819019654,156.58,0.00022182,2]
[310920294,1704819032404,-406.45312757,0.00022631,2]
[310920324,1704819037891,-508.2972275,0.00022631,2]
[310920325,1704819037901,-180.0,0.00022632,2]
[310920326,1704819037910,-150.0,0.00022732,2]
[310920327,1704819037919,-609.36960916,0.00022733,2]
[310920328,1704819037928,-204.4343378,0.0002274,2]
[310920329,1704819037937,-150.0,0.00022761,2]
[310920330,1704819037947,-961.8093,0.00022798,2]
[310920331,1704819037956,-150.0,0.0002282,2]
[310920332,1704819037965,-324.20687696,0.00022841,2]
[310920333,1704819037975,-150.0,0.00022847,2]
[310920334,1704819037989,-499.99,0.00022847,2]
[310920335,1704819037998,-150.0,0.00022891,2]
[310920336,1704819038008,-1902.43906643,0.000229,2]
[310920337,1704819038017,-193.41595175,0.000229,2]
[310920338,1704819038026,-7500.0,0.000229,2]
[310920339,1704819038035,-252.88919684,0.000229,2]
[310920340,1704819038045,-201.80902973,0.000229,2]
[310920341,1704819038054,-150.0,0.00022905,2]
[310920342,1704819038063,-300.0,0.00022911,2]
[310920343,1704819038072,-150.0,0.00022937,2]
[310920344,1704819038082,-150.0,0.00022975,2]
[310920345,1704819038091,-1500.0,0.00022977,2]
[310920346,1704819038100,-150.0,0.00022978,2]
[310920347,1704819038110,-150.0,0.00022991,2]
[310920348,1704819038119,-1500.0,0.00022997,2]
[310920349,1704819038130,-207.42651436,0.00022998,2]
[310920350,1704819038140,-991.9913937,0.00022999,2]
[310920351,1704819038152,-1000.0,0.00022999,2]
[310920352,1704819038161,-14586.8510936,0.00022999,2]
[310920353,1704819038171,-3572.68578081,0.00022999,2]
[310920354,1704819038180,-3104065.57717974,0.00023,2]
[310920355,1704819038190,-932.02592622,0.00023,2]
[310920356,1704819038200,-228.53400114,0.00023,2]
[310920357,1704819038210,-155.0,0.00023,2]
[310920358,1704819038220,-155.0,0.00023,2]
[310920359,1704819038230,-6122.55764073,0.00023,2]
[310920360,1704819038240,-183.36,0.00023,2]
[310920361,1704819038251,-377.96,0.00023037,2]
[310920362,1704819038261,-169.03,0.00023081,2]
[310920364,1704819038271,-262.77,0.00023108,2]
[310920365,1704819038280,-8886.44200221,0.0002313,2]
[310920366,1704819038290,-271.71,0.00023155,2]
[310920367,1704819038299,-262.77,0.00023224,2]
[310920368,1704819038308,-385.78761488,0.00023288,2]
[310920369,1704819038318,-500.0,0.00023288,2]
[310920370,1704819038328,-500.0,0.00023288,2]
[310920371,1704819038338,-500.0,0.00023288,2]
[310920372,1704819038348,-617.61757723,0.00023288,2]
[310920373,1704819038357,-500.0,0.00023288,2]
[310920374,1704819038367,-500.0,0.00023288,2]
[310920375,1704819038378,-262.77,0.0002334,2]
[310920376,1704819038387,-262.77,0.00023456,2]
[310920377,1704819038397,-262.77,0.00023572,2]
[310920378,1704819038407,-262.77,0.00023689,2]
[310920379,1704819038416,-262.77,0.00023805,2]
[310920380,1704819038754,-169.03,0.00023918,2]
[310920381,1704819038765,-262.77,0.00023921,2]
[310920382,1704819038775,-430.26668915,0.00024,2]
[310920383,1704819038787,-400.0,0.00024,3]
[310920384,1704819038800,-377.96,0.00024015,2]
[310920385,1704819038809,-262.77,0.00024037,2]
[310920386,1704819038819,-262.77,0.00024153,2]
[310920387,1704819038829,-271.71,0.00024258,2]
[310920388,1704819038839,-262.77,0.00024269,2]
[310920389,1704819038850,-324.42864942,0.0002442,2]
[310920390,1704819038861,-1902.43906635,0.00024545,2]
[310920391,1704819038871,-470.47,0.00024639,2]
[310920392,1704819038881,-598.99,0.00024658,4]
[310920393,1704819038891,-250.0,0.00024658,2]
[310920394,1704819038901,-150.0,0.00024658,2]
[310920395,1704819038911,-288.84428346,0.00024658,2]
[310920396,1704819038921,-169.03,0.00024755,2]
[310920397,1704819038931,-582.07,0.00024769,2]
[310920398,1704819038941,-501.59,0.00024872,2]
[310920399,1704819038952,-377.96,0.00024994,2]
[310920400,1704819038963,-507.55732129,0.00025,2]
[310920401,1704819038973,-167.05182833,0.00025,2]
[310920402,1704819038984,-1452.83483089,0.00025,2]
[310920403,1704819038994,-1016.69878254,0.00025,2]
[310920404,1704819039004,-430.0,0.00025,2]
[310920405,1704819039016,-2801.20631491,0.00025,2]
[310920406,1704819039026,-417.93,0.00025084,2]
[310920407,1704819039036,-7003.73397439,0.0002509,2]
[310920408,1704819039047,-271.71,0.0002536,2]
[310920409,1704819039057,-193.41595173,0.00025485,2]
[310920410,1704819039067,-169.03,0.00025592,2]
[310920411,1704819039078,-501.59,0.00025778,2]
[310920412,1704819039087,-377.96,0.00025972,2]
[310920413,1704819039097,-3397.86796347,0.00026,2]
[310920414,1704819039107,-200.70165869,0.00026,2]
[310920415,1704819039117,-450.0,0.00026,3]
[310920416,1704819039126,-150.0,0.00026079,2]
[310920417,1704819039137,-150.0,0.00026079,2]
[310920418,1704819039147,-1902.43906635,0.0002619,2]
[310920419,1704819039157,-16424.66427467,0.000264,2]
[310920420,1704819039167,-169.03,0.00026429,2]
[310920421,1704819039176,-271.71,0.00026463,2]
[310920422,1704819039187,-501.59,0.00026684,2]
[310920423,1704819039197,-19091.64966794,0.000267,2]
[310920424,1704819039207,-470.47,0.00026903,2]
[310920425,1704819039218,-377.96,0.0002695,2]
[310920426,1704819039228,-340.01029887,0.00027,2]
[310920427,1704819039238,-155.0,0.00027397,2]
[310920428,1704819039248,-500.0,0.00027397,2]
[310920429,1704819039258,-250.0,0.00027397,2]
[310920430,1704819039268,-750.0,0.000274,2]
[310920431,1704819039277,-672.78215871,0.000275,4]
[310920432,1704819039287,-7969.17823963,0.000275,2]
[310920433,1704819039299,-582.07,0.00027521,2]
[310920434,1704819039308,-501.59,0.00027589,2]
[310920435,1704819039318,-2349.234,0.00027822,2]
[310920436,1704819039329,-1902.43906635,0.00027835,2]
[310920437,1704819039339,-377.96,0.00027929,2]
[310920438,1704819039349,-6501.3,0.00027945,2]
[310920439,1704819039358,-3722.07,0.00027945,2]
[310920440,1704819039368,-12274.41017462,0.00028,2]
[310920441,1704819039377,-500.0,0.00028,3]
[310920442,1704819039388,-193.41595173,0.0002807,3]
[310920443,1704819039398,-417.93,0.0002822,2]
[310920444,1704819039408,-501.59,0.00028495,2]
[310920445,1704819039418,-269.41688063,0.00028699,2]
[310920446,1704819039427,-155.0,0.00028767,2]
[310920447,1704819039438,-377.96,0.00028907,2]
[310920448,1704819039449,-470.47,0.00029167,2]
[310920449,1704819039461,-501.59,0.00029401,2]
[310920450,1704819039473,-1902.43906635,0.0002948,2]
[310920451,1704819039483,-15872.21895005,0.000295,2]
[310920452,1704819039493,-150.0,0.00029699,2]
[310920453,1704819039503,-55555.0,0.000297,2]
[310920454,1704819039513,-420.84786215,0.00029799,4]
[310920455,1704819039523,-468.7892667,0.00029799,4]
[310920456,1704819039533,-500.0,0.00029799,4]
[310920457,1704819039544,-164.24,0.00029799,4]
[310920458,1704819039553,-259.46565905,0.00029799,4]
[310920459,1704819039562,-258.75519363,0.00029799,4]
[310920460,1704819039572,-237895.13553474,0.000298,2]
[310920461,1704819039586,-40915.1901105,0.000298,2]
[310920462,1704819039598,-49960.99665159,0.000298,2]
[310920463,1704819039620,-280.08129854,0.000298,2]
[310920468,1704819040384,2000.0,0.00022022,2]
[310920469,1704819040696,-1115.78190139,0.000298,2]
[310920493,1704819042882,-4552.83486343,0.000298,2]
[310920507,1704819043023,-5951.14649147,0.000298,2]
[310920509,1704819043148,-2739.46841914,0.000298,2]
[310920520,1704819045972,-61580.75027216,0.000298,2]
[310920521,1704819046082,-17878.0563033,0.000298,2]
[310920522,1704819046094,-382.22284281,0.000298,2]
[310920523,1704819046141,-362.90089276,0.000298,2]
[310920524,1704819046158,-8997.79576092,0.000298,2]
[310920536,1704819061141,544.40683217,0.00022017,7]
[310920537,1704819161904,350.0,0.00022,3]
[310920539,1704819663165,423.44,0.00020428,2]
[310920541,1704819770809,164.11,0.00022165,2]
[310920542,1704819791555,445.53,0.00021925,2]
[310920543,1704819841824,936.58,0.0002191,2]
[310920546,1704819848481,214.96,0.00021905,2]
[310920555,1704819907560,-2000.0,0.00022667,2]
[310920556,1704819908005,-133.7271505,0.00022667,2]
[310920557,1704819908026,-757.56211278,0.00022668,2]
[310920558,1704819908047,-728.0,0.00022669,2]
[310920559,1704819908068,-380.71073672,0.00022669,2]
[310920560,1704819909730,-534.03961835,0.00022669,2]
[310920561,1704819909751,-1465.96038165,0.00022672,2]
[310920562,1704819911782,-2000.0,0.00022672,2]
[310920563,1704819912348,-870.09775506,0.00022672,2]
[310920564,1704819912785,155.61,0.00022095,2]
[310920565,1704819913064,155.61,0.00022479,2]
[310920566,1704819936464,-818.68224494,0.00022674,2]
[310920567,1704819948883,-2000.0,0.00022674,2]
[310920568,1704819949608,-1562.19371835,0.00022674,2]
[310920569,1704819949631,-175.21,0.00022678,2]
[310920570,1704819949652,-156.46646105,0.00022689,2]
[310920571,1704819949673,-106.1298206,0.00022692,2]
[310920572,1704819950213,-317.3101794,0.00022692,2]
[310920573,1704819951993,917.26,0.00021927,2]
[310920574,1704819955872,161.95,0.00021959,2]
[310920632,1704820022795,498.83,0.00021921,2]
[310920663,1704820048395,600.0,0.000223,8]
[310920665,1704820049658,1200.0,0.000224,8]
[310920668,1704820051782,1800.0,0.000225,8]
[310920673,1704820053870,2400.0,0.000226,8]
[310920674,1704820056046,3100.0,0.000227,8]
[310920675,1704820058352,600.0,0.000228,8]
[310920688,1704820060258,600.0,0.000229,8]
[310920700,1704820062679,600.0,0.000249,9]
[310920751,1704820085693,104.6498206,0.00020029,2]
[310920752,1704820085717,276.4401794,0.00020029,2]
[310920753,1704820085983,381.09,0.00022293,2]
[310920872,1704820111066,164.19,0.00021947,2]
[310921039,1704820232025,-914.75035507,0.00022765,2]
[310921041,1704820232034,-155.0,0.00022766,2]
[310921043,1704820232043,-3909.77783461,0.00022768,2]
[310921045,1704820232052,-217.37,0.00022789,2]
[310921047,1704820232062,-156.46646105,0.00022795,2]
[310921049,1704820232071,-150.0,0.00022799,2]
[310921050,1704820232080,-155.0,0.000228,2]
[310921051,1704820232089,-4224.3579,0.000228,2]
[310921052,1704820232098,-861.1115,0.000228,2]
[310921053,1704820232107,-7370.9053,0.000228,2]
[310921054,1704820232116,-155.61,0.00022863,2]
[310921055,1704820232126,-2711.13,0.00022875,2]
[310921056,1704820232136,-499.99,0.00022875,2]
[310921057,1704820232146,-330.12,0.00022875,2]
[310921058,1704820232157,-150.99,0.00022875,2]
[310921059,1704820232166,-5561.38,0.00022875,2]
[310921060,1704820232176,-13656.84100206,0.00022889,2]
[310921061,1704820232187,-150.99,0.00022889,2]
[310921062,1704820232198,-645.14,0.00022889,2]
[310921063,1704820232208,-598.1247,0.0002289,2]
[310921064,1704820232218,-174.34662594,0.00022896,2]
[310921065,1704820232227,-461.48941784,0.00022898,2]
[310921066,1704820232238,-3329.69816337,0.00022898,2]
[310921067,1704820232247,-286.76876919,0.00022898,2]
[310921068,1704820232257,-10730.3146562,0.00022898,2]
[310921069,1704820232266,-155.0,0.00022898,2]
[310921070,1704820232276,-16227.52165535,0.00022898,2]
[310921071,1704820232285,-191.7774814,0.00022898,2]
[310921072,1704820232295,-155.0,0.00022898,2]
[310921073,1704820232304,-700.29317767,0.00022898,2]
[310921074,1704820232313,-1418.59087224,0.00022898,2]
[310921075,1704820232323,-530.36321761,0.00022898,2]
[310921076,1704820232332,-258.89187616,0.00022898,2]
[310921077,1704820232342,-2132.49090172,0.00022898,2]
[310921078,1704820232354,-317.84125667,0.00022898,2]
[310921079,1704820232364,-158.03340171,0.00022898,2]
[310921081,1704820232374,-212.19854046,0.00022898,2]
[310921082,1704820232384,-220.02114209,0.00022898,2]
[310921083,1704820232393,-521.37826743,0.00022898,2]
[310921084,1704820232405,-336.08709316,0.00022898,2]
[310921085,1704820232416,-341.50508812,0.00022898,2]
[310921086,1704820232427,-155.0,0.00022898,2]
[310921087,1704820232436,-540.61688108,0.00022898,2]
[310921088,1704820232449,-1254.66975801,0.00022898,2]
[310921090,1704820232459,-4614.15618708,0.00022898,2]
[310921091,1704820232470,-331.72410082,0.00022898,2]
[310921093,1704820232479,-928.4610592,0.00022898,2]
[310921095,1704820232490,-155.0,0.00022898,2]
[310921097,1704820232500,-155.3965756,0.00022898,2]
[310921099,1704820232509,-388.66908496,0.00022898,2]
[310921101,1704820232520,-566.53126948,0.00022898,2]
[310921102,1704820232530,-161.6896003,0.00022898,2]
[310921103,1704820232539,-155.0,0.00022898,2]
[310921104,1704820232549,-3024.9203508,0.00022898,2]
[310921105,1704820232558,-393.87027873,0.00022898,2]
[310921106,1704820232568,-338.08182442,0.00022898,2]
[310921107,1704820232577,-164.39415996,0.00022898,2]
[310921108,1704820232587,-224.40696535,0.00022898,2]
[310921109,1704820232597,-155.0,0.00022898,2]
[310921110,1704820232607,-575.83909486,0.00022898,2]
[310921111,1704820232617,-155.0,0.00022898,2]
[310921112,1704820232626,-600.78746311,0.00022898,2]
[310921113,1704820232635,-1224.12618162,0.00022898,2]
[310921115,1704820233336,-556.5846677,0.00022898,2]
[310921116,1704820233379,-348.43302903,0.00022898,2]
[310921117,1704820233389,-300.07685153,0.00022898,2]
[310921118,1704820233400,-1537.2628557,0.00022898,2]
[310921119,1704820233410,-1207.62945117,0.00022898,2]
[310921120,1704820233425,-244.08974883,0.00022898,2]
[310921121,1704820233435,-1537.26285568,0.00022899,2]
[310921122,1704820233445,-472.4896,0.00022899,2]
[310921123,1704820233454,-1537.26285568,0.00022899,2]
[310921124,1704820233464,-1537.26285568,0.000229,2]
[310921125,1704820233474,-2887.45703924,0.000229,2]
[310921126,1704820233484,-4777.3735,0.000229,2]
[310921127,1704820233493,-2056.5857,0.000229,2]
[310921128,1704820233503,-4119.2136362,0.000229,2]
[310921129,1704820233514,-518.491,0.000229,2]
[310921130,1704820233523,-1716.23840465,0.000229,2]
[310921131,1704820233534,-156.46646105,0.000229,2]
[310921132,1704820233543,-174.41039487,0.000229,2]
[310921133,1704820233553,-655.203,0.000229,2]
[310921134,1704820233563,-1000.0,0.000229,2]
[310921135,1704820233573,-198.79967109,0.000229,2]
[310921136,1704820233583,-907.0271299,0.000229,2]
[310921137,1704820233593,-390.1424403,0.000229,2]
[310921138,1704820233603,-322.27615981,0.000229,2]
[310921139,1704820233613,-345.00219431,0.000229,2]
[310921140,1704820233623,-181.68056271,0.000229,2]
[310921141,1704820233633,-1537.26285568,0.000229,2]
[310921142,1704820233643,-445.53,0.00022903,2]
[310921143,1704820233654,-2887.45703924,0.00022912,2]
[310921144,1704820233663,-2887.45703924,0.00022924,2]
[310921145,1704820233674,-2887.45703924,0.00022935,2]
[310921146,1704820233684,-35.23755645,0.00022947,2]
[310921147,1704820233709,-763.3723559,0.00022947,2]
[310921148,1704820233721,-368.64222539,0.00022947,2]
[310921149,1704820233749,-1151.35392073,0.00022947,2]
[310921150,1704820233761,-521.07491688,0.00022947,2]
[310921151,1704820233935,-47.77606389,0.00022947,2]
[310921152,1704820233944,-2887.45703924,0.00022959,2]
[310921153,1704820233954,-2887.45703924,0.00022971,2]
[310921154,1704820233963,-2605.21994866,0.00022983,2]
[310921155,1704820233975,-282.23709058,0.00022983,2]
[310921156,1704820233984,-356.95730864,0.0002299,2]
[310921157,1704820233994,-356.95730864,0.0002299,2]
[310921158,1704820234003,-356.95730864,0.0002299,2]
[310921159,1704820234012,-2887.45703924,0.00022995,2]
[310921160,1704820234022,-234.570411,0.00022997,2]
[310921161,1704820234032,-14586.8510936,0.00022998,2]
[310921162,1704820234041,-207.42651436,0.00022998,2]
[310921163,1704820234051,-162.16116058,0.00022998,2]
[310921164,1704820234060,-2141.5294569,0.00022998,2]
[310921165,1704820234069,-5149.51614214,0.00022998,2]
[310921166,1704820234079,-5213.88058374,0.00022998,2]
[310921167,1704820234088,-2892.60523596,0.00022998,2]
[310921168,1704820234097,-541.68312155,0.00022998,2]
[310921169,1704820234106,-158.31205223,0.00022998,2]
[310921170,1704820234116,-10533.37563469,0.00022998,2]
[310921171,1704820234126,-155.0,0.00022998,2]
[310921172,1704820234136,-441.68794777,0.00022998,2]
[310921173,1704820234145,-3325.6277456,0.00022998,2]
[310921174,1704820234156,-3850.10818064,0.00022998,2]
[310921175,1704820234165,-163.56252297,0.00022998,2]
[310921176,1704820234174,-636.35268627,0.00022998,2]
[310921177,1704820234184,-578.97126269,0.00022998,2]
[310921178,1704820234566,-709.73586984,0.00022998,2]
[310921179,1704820234581,-33667.95985811,0.00022998,2]
[310921180,1704820234592,-2996.74897427,0.00022998,2]
[310921181,1704820234603,-447.75011318,0.00022998,2]
[310921182,1704820234613,-1056.1158152,0.00022998,2]
[310921183,1704820234624,-300.0,0.00022999,2]
[310921184,1704820234635,-300.0,0.00022999,2]
[310921185,1704820234644,-150.0,0.00022999,2]
[310921186,1704820234655,-150.0,0.00022999,2]
[310921187,1704820234665,-150.0,0.00022999,2]
[310921188,1704820234674,-150.0,0.00022999,2]
[310921189,1704820234684,-150.0,0.00022999,2]
[310921190,1704820234694,-150.0,0.00022999,2]
[310921191,1704820234704,-150.0,0.00022999,2]
[310921192,1704820234714,-150.0,0.00022999,2]
[310921193,1704820234723,-150.0,0.00022999,2]
[310921194,1704820234733,-150.0,0.00022999,2]
[310921195,1704820234744,-150.0,0.00022999,2]
[310921196,1704820234754,-150.0,0.00022999,2]
[310921197,1704820234763,-58003.23657688,0.00023,2]
[310921198,1704820234777,-496.10168245,0.00023,2]
[310921220,1704820238173,-63660.85907277,0.00023,2]
[310921221,1704820238185,-69617.62158644,0.00023,2]
[310921222,1704820238197,-85692.71824885,0.00023,2]
[310921223,1704820238211,-7771508.2513014,0.00023,2]
[310921224,1704820238221,-932.39338065,0.00023,2]
[310921225,1704820238231,-4219176.86555005,0.00023,2]
[310921226,1704820238243,-293628.45944032,0.00023,2]
[310921227,1704820238252,-183.36,0.00023,2]
[310921228,1704820238262,-2887.45703924,0.00023006,2]
[310921229,1704820238271,-498.83,0.00023017,2]
[310921230,1704820238282,-2887.45703924,0.00023018,2]
[310921231,1704820238292,-2887.45703924,0.0002303,2]
[310921232,1704820238302,-8886.44200221,0.0002313,2]
[310921233,1704820238311,-155.61,0.00023247,2]
[310921234,1704820238322,-500.0,0.00023288,2]
[310921235,1704820238332,-247.04703089,0.00023288,2]
[310921236,1704820238342,-500.0,0.00023288,2]
[310921237,1704820238352,-385.78761488,0.00023288,2]
[310921238,1704820238365,-420.84786215,0.00023288,4]
[310921239,1704820238375,-500.0,0.00023288,4]
[310921240,1704820238385,-468.7892667,0.00023288,4]
[310921241,1704820238394,-164.24,0.00023288,4]
[310921242,1704820238404,-258.75519363,0.00023288,4]
[310921243,1704820238413,-259.46565905,0.00023288,4]
[310921244,1704820238423,-175.21,0.00023812,2]
[310921245,1704820238432,-445.53,0.00023882,2]
[310921246,1704820238442,-217.37,0.00023928,2]
[310921247,1704820238452,-430.12551417,0.00024,2]
[310921249,1704820238462,-200.75679987,0.00024,2]
[310921251,1704820238472,-400.0,0.00024,3]
[310921253,1704820238486,-1000.0,0.00024016,2]
[310921255,1704820238496,-498.83,0.00024113,2]
[310921256,1704820238506,-161.95,0.00024155,2]
[310921257,1704820238516,-767.17,0.00024357,2]
[310921258,1704820238526,-324.42864942,0.0002442,2]
[310921259,1704820238536,-381.09,0.00024557,2]
[310921260,1704820238547,-748.78,0.0002463,2]
[310921261,1704820238557,-936.58,0.00024649,2]
[310921262,1704820238567,-598.99,0.00024658,4]
[310921264,1704820238578,-250.0,0.00024658,2]
[310921266,1704820238588,-150.0,0.00024658,2]
[310921268,1704820238598,-288.84428346,0.00024658,2]
[310921270,1704820238609,-3617.0,0.000247,2]
[310921272,1704820238620,-501.59,0.00024711,2]
[310921274,1704820238631,-38814.0,0.000248,2]
[310921276,1704820238641,-445.53,0.0002486,2]
[310921278,1704820238651,-175.21,0.00024946,2]
[310921280,1704820238662,-167.05182833,0.00025,2]
[310921283,1704820238673,-1452.83483089,0.00025,2]
[310921285,1704820238682,-1016.69878254,0.00025,2]
[310921287,1704820238693,-430.0,0.00025,2]
[310921289,1704820238704,-2801.20631491,0.00025,2]
[310921291,1704820238714,-629.84183893,0.00025,2]
[310921293,1704820238724,-217.37,0.00025068,2]
[310921295,1704820238735,-7003.73397439,0.0002509,2]
[310921297,1704820238745,-498.83,0.00025209,2]
[310921299,1704820238755,-501.59,0.00025611,2]
[310921302,1704820238770,-445.53,0.00025839,2]
[310921304,1704820238781,-3397.86796347,0.00026,2]
[310921306,1704820238792,-450.0,0.00026,3]
[310921308,1704820238802,-200.70165869,0.00026,2]
[310921310,1704820238813,-150.0,0.00026079,2]
[310921312,1704820238824,-217.37,0.00026207,2]
[310921313,1704820238834,-498.83,0.00026305,2]
[310921316,1704820238845,-501.59,0.00026511,2]
[310921318,1704820238856,-169.03,0.00026527,2]
[310921320,1704820238866,-13769.67,0.00026591,2]
[310921322,1704820238876,-19091.64966794,0.000267,2]
[310921324,1704820238886,-203.0,0.00026767,2]
[310921326,1704820238896,-445.53,0.00026817,2]
[310921328,1704820238906,-381.09,0.00026821,2]
[310921330,1704820238916,-991.9913937,0.00026907,2]
[310921332,1704820238927,-340.01029887,0.00027,2]
[310921334,1704820238938,-167.0,0.00027043,2]
[310921336,1704820238950,-217.37,0.00027347,2]
[310921338,1704820238960,-936.58,0.00027388,2]
[310921340,1704820238971,-155.0,0.00027397,2]
[310921342,1704820238980,-500.0,0.00027397,2]
[310921344,1704820238991,-250.0,0.00027397,2]
[310921346,1704820239001,-750.0,0.000274,2]
[310921348,1704820239011,-767.17,0.00027402,2]
[310921350,1704820239021,-501.59,0.00027411,2]
[310921352,1704820239033,-672.78215871,0.000275,4]
[310921355,1704820239044,-7969.17823963,0.000275,2]
[310921357,1704820239060,-169.03,0.00027775,2]
[310921358,1704820239070,-445.53,0.00027796,2]
[310921359,1704820239081,-3101.72,0.00027945,2]
[310921360,1704820239092,-202.635464,0.00028,2]
[310921361,1704820239102,-12274.41017462,0.00028,2]
[310921362,1704820239113,-500.0,0.00028,3]
[310921363,1704820239123,-501.59,0.0002831,2]
[310921364,1704820239135,-2349.234,0.00028471,2]
[310921365,1704820239146,-203.0,0.00028516,5]
[310921366,1704820239159,-155.0,0.00028767,2]
[310921367,1704820239169,-445.53,0.00028774,2]
[310921368,1704820239179,-500.0,0.00028803,2]
[310921370,1704820239190,-7121.65,0.00028951,2]
[310921372,1704820239200,-159003.12046548,0.00029,15]
[310921374,1704820239210,-3573.05837961,0.00029,2]
[310921376,1704820239221,-169.03,0.00029022,2]
[310921378,1704820239231,-381.09,0.00029085,2]
[310921380,1704820239242,-501.59,0.0002921,2]
[310921382,1704820239253,-167.0,0.00029275,2]
[310921384,1704820239263,-157.66,0.00029406,2]
[310921386,1704820239272,-1500.0,0.00029461,2]
[310921388,1704820239284,-15872.21895005,0.000295,2]
[310921390,1704820239294,-150.0,0.00029517,2]
[310921392,1704820239307,-150.0,0.00029578,2]
[310921395,1704820239318,-157.66,0.00029616,2]
[310921397,1704820239327,-150.0,0.00029653,2]
[310921399,1704820239337,-150.0,0.00029718,2]
[310921401,1704820239347,-300.0,0.00029742,2]
[310921403,1704820239360,-445.53,0.00029753,2]
[310921405,1704820239370,-997.95732003,0.00029798,4]
[310921407,1704820239380,-413.70415544,0.00029798,7]
[310921409,1704820239390,-1938.85483391,0.00029799,2]
[310921411,1704820239399,-150.0,0.00029799,2]
[310921413,1704820239409,-111001.63487422,0.000298,2]
[310921416,1704820239425,-528238.70174715,0.000298,2]
[310921419,1704820239450,-1141.89980289,0.000298,2]
[310921425,1704820239502,-8094.253,0.000298,2]
[310921428,1704820239519,-271.00784553,0.000298,2]
[310921430,1704820239532,-4738.92396458,0.000298,2]
[310921434,1704820239556,-15585.10457614,0.000298,2]
[310921436,1704820239570,-333.0,0.000298,2]
[310921615,1704820240719,-178.80954288,0.00022898,2]
[310921617,1704820240729,-38761.56189708,0.000298,2]
[310921619,1704820240739,-498.95360142,0.000298,7]
[310921621,1704820240748,-507.79545917,0.000298,2]
[310921623,1704820240758,-155.0,0.000298,2]
[310921625,1704820240768,-155.0,0.000298,2]
[310921627,1704820240778,-228.53400114,0.000298,2]
[310921629,1704820240787,-6122.55764073,0.000298,2]
[310921631,1704820240797,-137758.45049293,0.000298,2]
[310921691,1704820241339,-281.088,0.000298,2]
[310921893,1704820243118,-178.80954286,0.00022899,2]
[310921895,1704820243127,-178.80954286,0.000229,2]
[310921897,1704820243137,-179.11223412,0.000298,2]
[310921902,1704820243173,-838.42856734,0.000298,2]
[310922139,1704820247419,-914.75035507,0.00029799,2]
[310922140,1704820247430,-15766.45101364,0.000298,2]
[310922141,1704820247596,-3832.38425959,0.000298,2]
[310922142,1704820247609,-1270.54824832,0.000298,2]
[310922147,1704820247752,-168844.85948089,0.000298,2]
[310922148,1704820247762,-225.50624152,0.00029805,2]
[310922149,1704820247772,-65747.80726904,0.00029806,2]
[310922152,1704820265741,1178.2798206,0.0002219,2]
[310922153,1704820265763,2000.0,0.0002219,2]
[310922154,1704820265782,2000.0,0.0002219,2]
[310922155,1704820265803,1405.7201794,0.0002219,2]
[310922156,1704820304095,164.34,0.0002983,120]
[310922159,1704820967779,350.0,0.00022,3]
[310922191,1704821432492,-155.85,0.00023,2]
[310922192,1704821432502,-357.36672631,0.00023288,4]
[310922195,1704821432512,-159.50339584,0.00023288,4]
[310922197,1704821432522,-435.606,0.00023288,4]